Cogmind - Beta 12 @@@ ROGUE MODE // 2023.04.13 @ 16:48:25 Player: Decinym Result: Self-destructed Performance ------------- Evolutions (3) 1500 Regions Visited (7) 1400 Robots Destroyed (72) 360 Value Destroyed (1987) 1987 Prototype IDs (32) 640 Alien Tech Used (0) 0 Bonus (-1189) -1189 TOTAL SCORE: 4698 Bonus ------- High Alert Combat Kills 121 Aligned with FarCom 300 Friendly Fire -1610 Cogmind --------- Core Integrity 664/700 Matter 117/300 Energy 290/290 System Corruption 0% Temperature Cool (0) Movement Treading (160) Location -7/Lower Caves Parts ------- > --- POWER (1) -------- Improved Deuterium Engine > --- PROPULSION (4) --- Light Treads Light Treads Light Treads Light Treads > --- UTILITY (6) ------ Large Storage Unit Active Sensor Suite Improved Targeting Computer Hacking Suite > --- WEAPON (2) ------- Enhanced Autogun Enhanced Autogun > --- INVENTORY (15) --- Heavy Ion Engine Light Treads Improved Carbon-fiber Leg Improved Carbon-fiber Leg Improved Heat Sink YI-UF0's Bottomless Matter Pit (1229) Improved Medium Armor Plating Medium Reactive Plating Insulated Plating Improved Shield Generator Shock Rifle Shock Bomb Launcher Rocket Array Plasma Cutter Power Maul Peak State ------------ > --- POWER ------------ Improved Deuterium Engine > --- PROPULSION ------- Light Treads Light Treads Light Treads Light Treads > --- UTILITY ---------- Large Storage Unit Active Sensor Suite Improved Targeting Computer Improved Shield Generator > --- WEAPON ----------- Enhanced Autogun Enhanced Autogun > --- INVENTORY -------- Improved Ion Engine Light Treads Improved Carbon-fiber Leg Improved Carbon-fiber Leg YI-UF0's Bottomless Matter Pit Improved Medium Armor Plating Insulated Plating Insulated Plating Hacking Suite Shock Rifle Shock Bomb Launcher Rocket Array Rocket Array Remote Datajack [Rating: 55] Favorites ----------- Power Improved Ion Engine Engine Improved Ion Engine Propulsion Light Treads Treads Light Treads Leg Improved Carbon-fiber Leg Utility Large Storage Unit Device Improved Heat Sink Storage Large Storage Unit Processor Improved Targeting Computer Hackware Hacking Suite Protection Insulated Plating Weapon Particle Cannon Energy Gun Heavy Particle Gun Energy Cannon Particle Cannon Ballistic Gun Assault Rifle Ballistic Cannon Heavy Assault Cannon Launcher Grenade Launcher Build | -11 -10 -10 -10 -9 -8 -7 -7 ------- Run | Jun Mat Min Exi Min Mat Fac Low Slots Evolved 6 | . . . . . 4 2 . Power . | . . . . . . . . Propulsion 2 | . . . . . 1 1 . Utility 4 | . . . . . 3 1 . Weapon . | . . . . . . . . Parts Attached 72 | . 5 5 1 4 35 22 . Power 7 | . 1 1 . . 2 3 . Engine 7 | . 1 1 . . 2 3 . Core . | . . . . . . . . Reactor . | . . . . . . . . Propulsion 17 | . . 2 . 1 9 5 . Treads 11 | . . 2 . 1 3 5 . Leg 6 | . . . . . 6 . . Wheel . | . . . . . . . . Hover . | . . . . . . . . Flight . | . . . . . . . . Utility 22 | . 2 . 1 1 12 6 . Device 8 | . . . . 1 4 3 . Storage 2 | . 1 . 1 . . . . Processor 3 | . 1 . . . 2 . . Hackware 1 | . . . . . . 1 . Protection 8 | . . . . . 6 2 . Artifact . | . . . . . . . . Weapon 26 | . 2 2 . 2 12 8 . Energy Gun 5 | . . . . . 5 . . Energy Cannon 4 | . 2 . . 1 1 . . Ballistic Gun 6 | . . 1 . . 1 4 . Ballistic Cannon 4 | . . . . . 2 2 . Launcher 7 | . . 1 . 1 3 2 . Special Weapon . | . . . . . . . . Impact Weapon . | . . . . . . . . Slashing Weapon . | . . . . . . . . Piercing Weapon . | . . . . . . . . Special Melee Weapon . | . . . . . . . . Unidentified Prototypes 9 | . . . 1 . 4 4 . Parts Lost 7 | . . 2 . . 3 2 . Power 1 | . . 1 . . . . . Propulsion 3 | . . 1 . . 1 1 . Utility 3 | . . . . . 2 1 . Weapon . | . . . . . . . . Highest Loss Streak 2 | . . 2 . . 2 1 . To Critical Strikes . | . . . . . . . . Average Slot Usage (%) 94 | . 98 99 99 87 93 91 84 Engine 10 | . 14 13 14 14 9 7 7 Treads 21 | . . 22 28 28 9 29 30 Leg 6 | . 28 5 . . 17 . . Device 5 | . . . . 2 14 8 7 Storage 10 | . 14 14 16 14 9 7 7 Processor 9 | . 12 14 10 . 12 7 7 Protection 6 | . . . . . 7 14 . Energy Gun 1 | . . . . . 6 . . Energy Cannon 7 | . 9 14 14 13 4 . . Ballistic Gun 8 | . 18 9 14 14 . 9 15 Ballistic Cannon 1 | . . . . . 2 2 . Launcher 1 | . . 4 . . . . . Naked Turns . | . . . . . . . . Heaviest Build 54 | 12 35 34 41 34 47 54 40 Greatest Support 80 | 20 20 40 40 40 60 80 80 Greatest Overweight (x) 1 | . 1 1 1 . 1 . . Average Overweight (x) . | . . . . . . . . Largest Inventory Capacity 15 | 8 15 15 15 15 15 15 15 Average Capacity 14 | 8 13 15 15 15 15 15 15 Most Carried 15 | 6 15 15 15 15 15 15 15 Average Carried 14 | 6 10 14 14 14 14 14 15 Final Capacity 15 | 8 15 15 15 15 15 15 15 Final Carried 15 | 6 15 15 14 15 15 15 15 Class Distribution -------------------- 61% | Mutant 29% | Scavenger-Mutant 9% | Scavenger-Skirmisher Dominant Class ---------------- Mutant | -10/Materials Mutant | -10/Mines Mutant | -10/Exiles Mutant | -9/Mines Mutant | -8/Materials Scavenger-Mutant | -7/Factory Scavenger-Mutant | -7/Lower Caves Resources | -11 -10 -10 -10 -9 -8 -7 -7 ----------- Run | Jun Mat Min Exi Min Mat Fac Low Matter Collected 2729 | 200 56 123 950 98 796 506 . Remotely . | . . . . . . . . Salvage Created 2078 | . 113 210 . 88 1085 582 . Parts 124 | . 8 14 . 9 66 27 . Haulers Intercepted 4 | . . . . . 1 3 . Recyclers Shooed 2 | . . . . 1 1 . . Parts Field Recycled . | . . . . . . . . Retrieved Matter . | . . . . . . . . Parts Self-Destructed . | . . . . . . . . Prevented . | . . . . . . . . Kills | -11 -10 -10 -10 -9 -8 -7 -7 ------- Run | Jun Mat Min Exi Min Mat Fac Low Combat Hostiles Destroyed 53 | . 3 8 . 6 26 10 . Guns 17 | . 1 . . 2 12 2 . Cannons 15 | . 2 2 . 1 5 5 . AOE 21 | . . 6 . 3 9 3 . Classes Destroyed 14 | . 1 1 . 2 8 2 . Worker 6 | . . . . . 3 3 . Builder 2 | . . . . . 2 . . Tunneler 1 | . . . . 1 . . . Hauler 4 | . . . . . 1 3 . Recycler 2 | . . . . . 1 1 . Mechanic 1 | . . . . . 1 . . Operator 2 | . . . . . 1 1 . Swarmer 18 | . . 6 . 3 6 3 . Grunt 22 | . 3 2 . 2 12 3 . Duelist 2 | . . . . 1 1 . . Sentry 8 | . . . . . 6 2 . Hunter 1 | . . . . . . 1 . Programmer 1 | . . . . . . 1 . Heavy 1 | . . . . . 1 . . Best Kill Streak 8 | . 1 3 . 3 8 7 . Combat Bots Only 6 | . 1 3 . 3 6 4 . Max Kills in Single Turn 3 | . 1 2 . 1 3 3 . Gunslinging . | . . . . . . . . Exploded 3 | . . 2 . 1 3 1 . Melee . | . . . . . . . . Uniques/NPCs Destroyed 1 | . . 1 . . . . . YI-UF0 (-10/Mines) Combat | -11 -10 -10 -10 -9 -8 -7 -7 -------- Run | Jun Mat Min Exi Min Mat Fac Low Damage Taken 2766 | . 79 360 32 409 1205 681 . Core 345 | . 35 46 . 93 135 36 . Absorbed by Shields 57 | . . . . . . 57 . Regen/Repaired (Parts) 185 | . . . . . . 185 . Core Remaining (%) 68 | 100 . . . 30 75 . . Volleys Fired 171 | . 7 35 1 22 67 39 . Largest 2 | . 2 2 2 2 2 2 . Hottest 136 | . 136 136 88 88 136 60 . Shots Fired 271 | . 14 58 2 37 110 50 . Gun 135 | . 2 19 1 15 76 22 . Cannon 111 | . 12 33 1 15 25 25 . Launcher 25 | . . 6 . 7 9 3 . Special . | . . . . . . . . Kinetic 99 | . 2 19 1 15 15 47 . Thermal 147 | . 12 33 1 15 86 . . Explosive 25 | . . 6 . 7 9 3 . Electromagnetic . | . . . . . . . . Robot Hit Streak 15 | . 4 5 4 8 15 13 . Robot Miss Streak 5 | . 1 3 . 5 4 5 . Penetration Max 1 | . . . . . . 1 . Secondary Targets 1 | . . . . . 1 . . Max Gunslinging Chain 1 | . . . . . 1 . . Shots Hit Robots 171 | . 10 34 2 16 74 35 . Core Hits 117 | . 4 19 . 10 58 26 . Critical Kills . | . . . . . . . . Critical Parts Destroyed . | . . . . . . . . Critical Strikes 9 | . . . . . 7 2 . Burn 6 | . . . . . 6 . . Blast 3 | . . . . . 1 2 . Melee Attacks . | . . . . . . . . Impact . | . . . . . . . . Slashing . | . . . . . . . . Piercing . | . . . . . . . . Sneak Attacks . | . . . . . . . . Combat Hostiles . | . . . . . . . . Follow-up Attacks . | . . . . . . . . Damage Inflicted 5663 | . 193 949 16 645 2433 1427 . Guns 1621 | . 29 161 14 58 1047 312 . Cannons 1896 | . 164 369 2 145 448 768 . Explosions 2063 | . . 363 . 428 925 347 . Melee . | . . . . . . . . Ramming 83 | . . 56 . 14 13 . . Kinetic 1647 | . 29 161 14 58 305 1080 . Thermal 1870 | . 164 369 2 145 1190 . . Explosive 2063 | . . 363 . 428 925 347 . Electromagnetic . | . . . . . . . . Impact . | . . . . . . . . Slashing . | . . . . . . . . Piercing . | . . . . . . . . Highest Corruption . | . . . . . . . . Average Corruption . | . . . . . . . . Corruption Purged . | . . . . . . . . Corruption Blocked . | . . . . . . . . Overload Shots . | . . . . . . . . Overflow Damage 127 | . . 4 . 5 53 65 . Projectiles 63 | . . 1 . . 1 61 . Explosions 64 | . . 3 . 5 52 4 . Melee . | . . . . . . . . Knockbacks 3 | . . 1 . . 1 1 . Impact 1 | . . 1 . . . . . Kinetic 2 | . . . . . 1 1 . Secondary . | . . . . . . . . Self-Inflicted Damage 244 | . . 34 . 64 27 119 . Shots 18 | . . 3 . 5 2 8 . Rammed 21 | . . 19 . . 2 . . Targets Rammed 23 | . . 19 . 1 3 . . Kicked 1 | . . . . . 1 . . Crushed 1 | . . . . 1 . . . Highest Temperature 378 | . 312 378 30 343 21 55 . Average Temperature 102 | . 136 127 20 157 8 18 . Received Heat Transfer 674 | . 42 111 . 48 342 131 . Effects 2 | . . . . 2 . . . Energy Bleed 2 | . . . . 2 . . . Siege Activations . | . . . . . . . . Robots Corrupted . | . . . . . . . . Combat Hostiles . | . . . . . . . . Parts Fried . | . . . . . . . . Impact Corruptions . | . . . . . . . . Robots Melted . | . . . . . . . . Combat Hostiles . | . . . . . . . . Parts Melted 9 | . 1 1 . 1 6 . . Heat Transferred 4116 | . 296 666 9 259 2886 . . Parts Sabotaged . | . . . . . . . . Parts Stolen . | . . . . . . . . Parts Stripped . | . . . . . . . . Power Chain Reactions . | . . . . . . . . Missiles Intercepted . | . . . . . . . . Alert | -11 -10 -10 -10 -9 -8 -7 -7 ------- Run | Jun Mat Min Exi Min Mat Fac Low Peak Influence 754 | . 109 244 . 159 754 508 . Initial 237 | . . 42 . . . 237 . Average 199 | . 34 88 . 90 281 292 . Maximum Alert Level 3 | . . 1 . . 3 2 . Low Security (%) 55 | 100 100 82 . 100 44 19 . Level 1 30 | . . 17 . . 12 69 . Level 2 13 | . . . . . 39 10 . Level 3 . | . . . . . 3 . . Level 4 . | . . . . . . . . Level 5 . | . . . . . . . . High Security . | . . . . . . . . Max Security . | . . . . . . . . Squads Dispatched 7 | . 1 . . . 3 3 . Investigation 3 | . 1 . . . 1 1 . Extermination 1 | . . . . . . 1 . Reinforcement 3 | . . . . . 2 1 . Assault . | . . . . . . . . Garrison . | . . . . . . . . Intercept . | . . . . . . . . Searches Triggered . | . . . . . . . . Construction Impeded 1 | . . . . . 1 . . Haulers Reinforced . | . . . . . . . . Active Scanning Responses . | . . . . . . . . Cargo Convoy Interrupts . | . . . . . . . . Stealth | -11 -10 -10 -10 -9 -8 -7 -7 --------- Run | Jun Mat Min Exi Min Mat Fac Low Distress Signals 6 | . 1 . . . 4 1 . Communications Jammed . | . . . . . . . . Distress Signals . | . . . . . . . . Times Spotted 82 | . 8 9 1 6 42 16 . Peak Tracking Total 6 | . 3 3 . 3 6 3 . Tactical Retreats 3 | . . 1 . . 2 . . Traps | -11 -10 -10 -10 -9 -8 -7 -7 ------- Run | Jun Mat Min Exi Min Mat Fac Low Traps Triggered 3 | . 1 . . . 1 1 . Indirectly . | . . . . . . . . Trap Hack Attempts . | . . . . . . . . Triggered . | . . . . . . . . Disarmed . | . . . . . . . . Reprogrammed . | . . . . . . . . Reused . | . . . . . . . . Traps Extracted . | . . . . . . . . Installed . | . . . . . . . . Triggered . | . . . . . . . . Most Traps Carried 4 | . . 4 4 4 4 . . Exploded 1 | . . . 1 . . . . Machines | -11 -10 -10 -10 -9 -8 -7 -7 ---------- Run | Jun Mat Min Exi Min Mat Fac Low Machines Disabled 4 | . . . . . 3 1 . Max in Single Turn 2 | . . . . . 2 1 . Machines Repaired . | . . . . . . . . Machines Sabotaged . | . . . . . . . . Overloaded Fab Kills . | . . . . . . . . Hacking | -11 -10 -10 -10 -9 -8 -7 -7 --------- Run | Jun Mat Min Exi Min Mat Fac Low Machines Accessed 16 | . 2 . 2 . 6 6 . Terminals 9 | . 2 . . . 5 2 . Fabricators 1 | . . . . . . 1 . Repair Stations 3 | . . . . . . 3 . Recycling Units . | . . . . . . . . Scanalyzers 1 | . . . . . 1 . . Garrison Access . | . . . . . . . . Total Hacks 40 | . 3 . 2 . 18 17 . Successful 19 | . 2 . 2 . 7 8 . Failed 21 | . 1 . . . 11 9 . Catastrophic 7 | . 1 . . . 2 4 . Database Lockouts . | . . . . . . . . Manual 20 | . 2 . 1 . 11 6 . Terminals 25 | . 3 . . . 15 7 . Fabricators 2 | . . . . . . 2 . Repair Stations 8 | . . . . . . 8 . Recycling Units . | . . . . . . . . Scanalyzers 3 | . . . . . 3 . . Garrison Access . | . . . . . . . . Terminal Hacks 10 | . 2 . 2 . 5 1 . Record 1 | . . . 1 . . . . Robot Analysis 1 | . . . . . 1 . . Branch Access Points 2 | . 1 . . . 1 . . Fabricator Index 1 | . . . . . . 1 . Alert Level 1 | . . . . . 1 . . Unreport Threat 1 | . . . . . 1 . . Hauler Manifests 1 | . . . . . 1 . . Zone Layout 1 | . 1 . . . . . . EX-Prototype ID Bank 1 | . . . 1 . . . . Fabricator Hacks 1 | . . . . . . 1 . Build 1 | . . . . . . 1 . Repair Station Hacks 6 | . . . . . . 6 . Scan Component 3 | . . . . . . 3 . Repair 3 | . . . . . . 3 . Recycling Unit Hacks . | . . . . . . . . Scanalyzer 2 | . . . . . 2 . . Insert Component 1 | . . . . . 1 . . Analyze 1 | . . . . . 1 . . Garrison Access Hacks . | . . . . . . . . Unauthorized Hacks . | . . . . . . . . Terminals . | . . . . . . . . Fabricators . | . . . . . . . . Repair Stations . | . . . . . . . . Recycling Units . | . . . . . . . . Scanalyzers . | . . . . . . . . Garrison Access . | . . . . . . . . Data Cores Recovered 2 | . . . . . 1 1 . Used 1 | . . . . . 1 . . Hacking Detections 14 | . 2 . . . 6 6 . Full Trace Events 1 | . . . . . . 1 . Feedback Events . | . . . . . . . . Feedback Blocked . | . . . . . . . . Robot Schematics Acquired . | . . . . . . . . Robots Built . | . . . . . . . . Authchips . | . . . . . . . . Time . | . . . . . . . . Total Robot Build Rating . | . . . . . . . . Part Schematics Acquired 1 | . . . . . 1 . . Parts Built 2 | . . . . . . 2 . Authchips . | . . . . . . . . Time 84 | . . . . . . 84 . Total Part Build Rating 8 | . . . . . . 8 . Parts Repaired 3 | . . . . . . 3 . Time 71 | . . . . . . 71 . Parts Recycled . | . . . . . . . . Recycled Matter . | . . . . . . . . Retrieved Matter . | . . . . . . . . Retrieved Components . | . . . . . . . . Parts Scanalyzed 1 | . . . . . 1 . . Part Schematics Acquired 1 | . . . . . 1 . . Parts Damaged 1 | . . . . . 1 . . Bothacking | -11 -10 -10 -10 -9 -8 -7 -7 ------------ Run | Jun Mat Min Exi Min Mat Fac Low Used RIF Installer . | . . . . . . . . Robots Hacked . | . . . . . . . . Non-combat . | . . . . . . . . Combat . | . . . . . . . . Robot Hacks Applied . | . . . . . . . . Relay Couplers Released . | . . . . . . . . Fabnet Peak Effective % . | . . . . . . . . Robots Rewired . | . . . . . . . . Allies Hacked . | . . . . . . . . Hacks Repelled . | . . . . . . . . Allies | -11 -10 -10 -10 -9 -8 -7 -7 -------- Run | Jun Mat Min Exi Min Mat Fac Low Total Allies . | . . . . . . . . Largest Group . | . . . . . . . . Highest-Rated Group . | . . . . . . . . Highest-Rated Ally . | . . . . . . . . Total Orders . | . . . . . . . . Ally Attacks . | . . . . . . . . Total Damage . | . . . . . . . . Kills . | . . . . . . . . Allies Corrupted . | . . . . . . . . Allies Melted . | . . . . . . . . Intel | -11 -10 -10 -10 -9 -8 -7 -7 ------- Run | Jun Mat Min Exi Min Mat Fac Low Robot Analysis Total 1 | . . . . . 1 . . Derelict Logs Recovered 4 | . . 3 . 1 . . . Drone Launches . | . . . . . . . . Drone Recoveries . | . . . . . . . . Exploration | -11 -10 -10 -10 -9 -8 -7 -7 ------------- Run | Jun Mat Min Exi Min Mat Fac Low Turns Passed 4901 | 2 345 1131 401 430 1092 1496 4 Spaces Moved 2644 | 2 181 602 230 226 598 803 2 Core . | . . . . . . . . Treads 1987 | . . 519 230 226 207 803 2 Legs 657 | 2 181 83 . . 391 . . Wheels . | . . . . . . . . Hover . | . . . . . . . . Flight . | . . . . . . . . Fastest Speed 120 | 120 120 160 160 160 120 160 160 Average Speed 156 | 120 164 164 171 160 134 160 160 Slowest Speed 240 | 120 190 190 240 160 240 160 160 Overloaded Moves . | . . . . . . . . Propulsion Burnouts . | . . . . . . . . Robots Hopped . | . . . . . . . . Cave-ins Triggered . | . . . . . . . . Exploration Rate (%) 40 | 2 32 98 61 56 53 20 2 Regions Visited 7 Branch Regions 4 Pre-discovered Areas 2 | . . 1 1 . . . . Known Exits Taken 4 | . 1 1 . . 1 1 . Unknown Exits Taken 3 | 1 . . 1 1 . . . Scrap Searched 2 | . . 1 . 1 . . . Spaces Dug 5 | . . . . . 2 3 . Terrain Destroyed 216 | . . 49 . 48 104 15 . Melee . | . . . . . . . . Projectile 21 | . . 1 . . 10 10 . AOE 195 | . . 48 . 48 94 5 . Terrain Rammed . | . . . . . . . . Walls Destroyed . | . . . . . . . . Machines Disabled . | . . . . . . . . Actions | -11 -10 -10 -10 -9 -8 -7 -7 --------- Run | Jun Mat Min Exi Min Mat Fac Low Total 3122 | 1 215 677 234 255 772 966 2 Wait 92 | . 12 3 1 . 21 55 . Move 2637 | 1 180 601 229 225 597 802 2 Hop . | . . . . . . . . Pick Up 53 | . 7 8 . 2 16 20 . Fast Attach 31 | . 3 . . 1 16 11 . Attach 21 | . . 2 . . 11 8 . Detach 9 | . 2 . 1 . 3 3 . Swap 20 | . 2 3 1 3 8 3 . Drop 65 | . 2 6 1 1 30 25 . Fire 171 | . 7 35 1 22 67 39 . Melee . | . . . . . . . . Ram . | . . . . . . . . Kick 1 | . . . . . 1 . . Crush 22 | . . 19 . 1 2 . . Escape Stasis . | . . . . . . . . Rewire . | . . . . . . . . Trap . | . . . . . . . . Miscellaneous . | . . . . . . . . Route ------- -11/Junkyard -10/Materials (discovered 3 exits: *Mat / *Min x2) -10/Mines (discovered 3 exits: *Mat x2 / *Exi) -10/Exiles -9/Mines -8/Materials (discovered 2 exits: *Fac x2) -7/Factory (discovered 2 exits: *Low x2) -7/Lower Caves History --------- Turn | Location | Event 1 | -11/Junkyard | Discovered new exit (range 1) 3 | -11/Junkyard | Entered Materials 134 | -10/Materials | Identified exit to Mines 257 | -10/Materials | Discovered new exit (range 9) 302 | -10/Materials | Build established: Mutant 348 | -10/Materials | Entered Mines 393 | -10/Mines | Learned location of Mines (-9) 473 | -10/Mines | Found a hidden stash of uninstalled traps 714 | -10/Mines | Learned 4 Materials zone layouts 715 | -10/Mines | YI-UF0 nonchalantly dropped a Grenade Launcher on the ground 814 | -10/Mines | Destroyed YI-UF0 830 | -10/Mines | Found Prototype Storage 839 | -10/Mines | Found Prototype Launcher 956 | -10/Mines | Discovered new exit (range 11) 971 | -10/Mines | Identified exit to Materials 1203 | -10/Mines | Discovered exit to Materials (range 6) 1471 | -10/Mines | Deemed a non-threat by the Exiles lab entrance 1472 | -10/Mines | Discovered new exit (range 5) 1477 | -10/Mines | Identified exit to Exiles 1479 | -10/Mines | Entered Exiles 1519 | -10/Exiles | Met 8R-AWN 1545 | -10/Exiles | Met EX-HEX 1590 | -10/Exiles | Met EX-BIN 1609 | -10/Exiles | Aligned with FarCom system 1611 | -10/Exiles | Given EX-Vault access code 1647 | -10/Exiles | Opened EX-Vault 1684 | -10/Exiles | Warned to stay clear of 0b10 Research branches 1712 | -10/Exiles | Exiles lab attacked by MAIN.C 1743 | -10/Exiles | Learned location of Zion (-7) 1791 | -10/Exiles | Identified YI-UF0's Bottomless Matter Pit 1856 | -10/Exiles | Discovered new exit (range 10) 1878 | -10/Exiles | Attacked by the Exiles 1880 | -10/Exiles | Entered Mines 1889 | -9/Mines | Core integrity fell below 50% 1917 | -9/Mines | Met a Derelict bent on vengeance 2029 | -9/Mines | A weapon hastily lodged in a ceiling crevice suddenly fell to the ground 2151 | -9/Mines | Learned 2 Materials zone layouts 2282 | -9/Mines | Discovered new exit (range 15) 2310 | -9/Mines | Entered Materials 2310 | -8/Materials | Evolved 4 slots: Propulsion x1, Utility x3 2311 | -8/Materials | Identified exit to Factory 3064 | -8/Materials | Identified YI-UF0's Doublenader 3074 | -8/Materials | Found Prototype Device 3310 | -8/Materials | Build established: Scavenger-Mutant 3402 | -8/Materials | Entered Factory 3402 | -7/Factory | Evolved 2 slots: Propulsion x1, Utility x1 3458 | -7/Factory | Repaired Lgt. Treads 3470 | -7/Factory | Discovered new exit (range 7) 3485 | -7/Factory | Repaired Lgt. Treads 3623 | -7/Factory | Found Prototype Launcher 3623 | -7/Factory | Identified Rocket Array 3635 | -7/Factory | Found Rocket Array 4383 | -7/Factory | Fabricated Imp. Carbon-fiber Leg (x2) 4405 | -7/Factory | Discovered new exit (range 5) 4429 | -7/Factory | Identified Active Sensor Suite 4430 | -7/Factory | Identified exit to Lower Caves 4525 | -7/Factory | Repaired Shock Rifle 4734 | -7/Factory | Build established: Scavenger-Skirmisher 4898 | -7/Factory | Entered Lower Caves 4902 | -7/Lower Caves | Self-destructed Last Messages --------------- 04594_ K-01 Serf cleans the Nuclear Reactor. 04599_ Dropped Remote Datajack. 04600_ Acquired Power Maul. 04605_ K-01 Serf cleans the Nuclear Reactor. 04792_ R-06 Scavenger destroyed. 04796_ Acquired 90 matter. 04821_ ALERT: Cargo convoy en route, clear transfer corridor. 04875_ A-02 Transporter destroyed. 04879_ Dropped Enh. Autogun. 04879_ Acquired Prototype Ballistic Gun. 04879_ Identified Imp. Assault Rifle. 04881_ Dropped Imp. Assault Rifle. 04883_ Dropped Imp. Deuterium Engine. 04883_ Acquired Prototype Engine. 04883_ Identified Hvy. Ion Engine. 04885_ Dropped Imp. Ion Engine. 04887_ Acquired Imp. Deuterium Engine. 04892_ Acquired Enh. Autogun. LOCATION=LOWER CAVES GOAL=ESCAPE Map ----- +----------------------------------------------------+ | ??????????????????????????????????????????????? | | ??????????????????????????????????????????????? | | ??????????????????????????????????????????????? | | ??????????????????????????????????????????????? | | ??????????????????????????????????????????????? | | ??????????????????????????????????????????????? | | ??????????????????????????????????????????????? | | ??????????????????????????????????????????????? | | ??????????????????????????????????????????????? | | ???????????????????????b??????????????????????? | | ?????????????????????s????????????????????????? | | ????????????????????????h?????????????????????? | | ???????????????????? ?????????????????????????? | | ????????????????????# ??l?????????????????????? | | ???????????????????## ????????????????????????? | | ???????????????????# #???????????????????????? | | ???????????????????? ??????????????????????? | | ???????????????????? ??????????????????????? | | ????????????????????? ??????????????????????? | | ?????????????????????# ??????????????????????? | | ?????????????????????# ?????????????????????? | | ?????????????????????# ?????????????????????? | | ??????????????# ?????# ?????????????????????? | | ??????????????# ??# ######???????????????? | | ??????????????# # ##??????????????? | | ???????????????# # @ # #??????????????? | | ?????????????????# #?????????????????? | | ?????????????????# # # #???????????????? | | ????????????????? ## #???????????????? | | ???????????????# ??### ##???????????????? | | ???????????????## ??????## ##????????????????? | | ????????????????#????????####?????????????????? | | ??????????????????????????????????????????????? | | ??????????????????????????????????????????????? | | ??????????????????????????????????????????????? | | ??????????????????????????????????????????????? | | ??????????????????????????????????????????????? | | ??????????????????????????????????????????????? | | ??????????????????????????????????????????????? | | ??????????????????????????????????????????????? | | ??????????????????????????????????????????????? | | ??????????????????????????????????????????????? | | ??????????????????????????????????????????????? | | ??????????????????????????????????????????????? | | ??????????????????????????????????????????????? | | ??????????????????????????????????????????????? | | ??????????????????????????????????????????????? | | ??????????????????????????????????????????????? | | ??????????????????????????????????????????????? | | ??????????????????????????????????????????????? | +----------------------------------------------------+ Best States ------------- Heat Dissipation 59 Energy Generation 16 Energy Capacity 290 Matter Stores 1240 Matter Capacity 1800 Sight Range 16 Robot Scan Range 20 Terrain Scan Density 10 Armor Coverage 525 Resistance: TH 10 Resistance: EM 15 Evasion (%) 55 Targeting Accuracy 6 Launcher Accuracy 20 Recoil Reduction 4 Offensive Hacking 10 Authchip Count 2 Item Schematics ----------------- Plasma Flamer | -8/Materials | Scanalyzed Robot Schematics ------------------ None Fabricated ------------ Imp. Carbon-fiber Leg | x2 | -7/Factory | Preloaded Alien Tech Used ----------------- None Achievements -------------- None Challenges ------------ None Game ------ Seed AssembledSystemInjector Manual? 0 Play Time 00:34:18 Cumulative 298.9 hours Start 2023.03.21 @ 18:38:06 End 2023.04.13 @ 16:48:25 Sessions 5 Manual Loads 0 Difficulty Rogue Special Mode None Game No. 334 Rogue 334 Adventurer 0 Explorer 0 Win Type - Total 27 Types 16/3/2/1/2/0/3/0/0 Lore% 82 Gallery% 77 Achievement% 82 Wizard Run 0 Options --------- ASCII 0 Keyboard 0 Movement Arrows Keybinds 0 Fullscreen 2 Font 24/Smallcaps Map View 76x50 Tactical HUD 1 Map Filters NONE Filters NONE Steam 1 RUN: fb839ca0-98bf-4a01-8ce1-a0382f392399